Cogmind - Beta 17.1 @@@ ROGUE MODE // 2026.09.13 @ 14:44:46 Player: UnderDoug Result: Destroyed by K9-C6P(R) with Subdweller Laser Performance ------------- Evolutions (0) 0 Regions Visited (2) 400 Robots Destroyed (37) 185 Value Destroyed (540) 540 Prototype IDs (1) 20 Alien Tech Used (0) 0 Bonus (5000) 5000 TOTAL SCORE: 6145 Bonus ------- Prayed to X0-1V1 5000 Cogmind --------- Core Integrity 0/200 Matter 218/300 Energy 100/100 System Corruption 0% Temperature Cool (6) Movement Treading (160) Location -10/Subcaves Parts ------- > --- POWER (1) -------- (None) > --- PROPULSION (2) --- Light Treads > --- UTILITY (2) ------ Small Storage Unit X0-1V1's Piety Tracker > --- WEAPON (2) ------- Light Assault Rifle > --- INVENTORY (8) ---- Ion Engine Small Matter Pod (50) Improved Terrain Scanner Mining Laser Peak State ------------ > --- POWER ------------ Light Ion Engine > --- PROPULSION ------- Light Treads Light Treads > --- UTILITY ---------- Small Storage Unit X0-1V1's Piety Tracker > --- WEAPON ----------- Light Assault Rifle Grenade Launcher > --- INVENTORY -------- Ion Engine Light Ion Engine Hover Unit Small Matter Pod Improved Terrain Scanner Light Assault Rifle Light Assault Rifle Mining Laser [Rating: 20] Favorites ----------- Power Light Ion Engine Engine Light Ion Engine Propulsion Light Treads Treads Light Treads Leg Aluminum Leg Hover Unit Hover Unit Utility Small Storage Unit Device Seismic Detector Storage Small Storage Unit Weapon Light Assault Rifle Energy Gun Small Laser Ballistic Gun Light Assault Rifle Launcher Grenade Launcher Build | -11 -10 -10 ------- Run | Yrd Mat Sub Slots Evolved . | . . . Power . | . . . Propulsion . | . . . Utility . | . . . Weapon . | . . . Parts Attached 29 | 8 18 3 Power 6 | 2 3 1 Engine 6 | 2 3 1 Core . | . . . Reactor . | . . . Propulsion 11 | 2 9 . Treads 2 | . 2 . Leg 5 | 2 3 . Wheel . | . . . Hover 4 | . 4 . Flight . | . . . Utility 6 | 2 3 1 Device 5 | 1 3 1 Storage 1 | 1 . . Processor . | . . . Hackware . | . . . Protection . | . . . Artifact . | . . . Weapon 6 | 2 3 1 Energy Gun 1 | 1 . . Energy Cannon . | . . . Ballistic Gun 4 | 1 2 1 Ballistic Cannon . | . . . Launcher 1 | . 1 . Special Weapon . | . . . Impact Weapon . | . . . Slashing Weapon . | . . . Piercing Weapon . | . . . Special Melee Weapon . | . . . Unidentified Prototypes 1 | . 1 . Parts Lost 12 | . 4 8 Power 3 | . 1 2 Propulsion 5 | . 3 2 Utility 1 | . . 1 Weapon 3 | . . 3 Highest Loss Streak 7 | . 3 7 To Critical Strikes . | . . . Average Backups 7 | 6 7 7 Power 1 | . 1 1 Propulsion 1 | 3 1 . Utility 1 | . 2 2 Weapon 2 | 1 2 2 Tool/Special . | . . . Unused Backups 5 | 1 2 2 Power 1 | . 1 . Propulsion 2 | 1 1 . Utility 1 | . . 1 Weapon 1 | . . 1 Tool/Special . | . . . Average Slot Usage (%) 97 | . 97 97 Engine 13 | . 13 13 Treads 15 | . 11 27 Leg 6 | . 8 . Hover 5 | . 7 . Device 13 | . 14 12 Storage 14 | . 14 14 Energy Gun 1 | . 2 . Ballistic Gun 18 | . 19 14 Launcher 6 | . 4 13 Peak Build Rating 20 | 9 20 20 Average Rating 9 | 5 7 18 On Entrance 9 | . 9 20 Avg Prop Armor Cover (%) . | . . . Naked Turns . | . . . Heaviest Build 15 | 13 15 13 Greatest Support 40 | 20 40 40 Greatest Overweight (x) 2 | 1 2 . Average Overweight (x) . | . . . Largest Inventory Capacity 8 | 8 8 8 Average Capacity 7 | 7 8 8 Most Carried 8 | 8 8 8 Average Carried 7 | 6 7 7 Final Capacity 8 | 8 8 8 Final Carried 8 | 8 8 4 Class Distribution -------------------- 91% | Mutant 8% | Scavenger-Mutant Dominant Class ---------------- Mutant | -10/Materials Mutant | -10/Subcaves Resources | -11 -10 -10 ----------- Run | Yrd Mat Sub Matter Collected 905 | 360 532 13 Remotely . | . . . Salvage Created 784 | 276 499 9 Parts 72 | 23 48 1 Haulers Intercepted . | . . . Recyclers Shooed 3 | . 3 . Parts Field Recycled . | . . . Retrieved Matter . | . . . Parts Self-Destructed 4 | . . 4 Prevented . | . . . Parts Restored . | . . . Kills | -11 -10 -10 ------- Run | Yrd Mat Sub Combat Hostiles Destroyed 16 | . 15 1 Guns 7 | . 6 1 AOE 9 | . 9 . Classes Destroyed 10 | 3 6 1 Worker 3 | 2 1 . Builder 2 | . 2 . Tunneler 7 | 7 . . Recycler 2 | 1 1 . Mechanic 1 | . 1 . Operator 3 | . 3 . Watcher 3 | . 3 . Swarmer 9 | . 9 . Grunt 6 | . 6 . Subdweller 1 | . . 1 Best Kill Streak 9 | 4 9 1 Combat Bots Only 6 | . 6 1 Max Kills in Single Turn 3 | 1 3 1 Gunslinging . | . . . Exploded 2 | . 2 . Melee . | . . . Uniques/NPCs Destroyed . | . . . Combat | -11 -10 -10 -------- Run | Yrd Mat Sub Hostile Shots Fired 104 | . 66 38 Missed 24 | . 15 9 Hits 80 | . 51 29 Projectile 80 | . 51 29 Critical Strikes 3 | . 1 2 Damage Taken 1347 | . 641 706 Core 267 | . 149 118 Absorbed by Shields . | . . . Core Remaining (%) 100 | 100 . . Volleys Fired 106 | 16 73 17 Largest 2 | 2 2 2 Hottest 60 | 60 60 50 Shots Fired 184 | 32 130 22 Gun 167 | 32 118 17 Cannon . | . . . Launcher 17 | . 12 5 Special . | . . . Kinetic 128 | 16 95 17 Thermal 39 | 16 23 . Explosive 17 | . 12 5 Electromagnetic . | . . . Robot Hit Streak 23 | 6 11 23 Robot Miss Streak 5 | 2 5 . Penetration Max . | . . . Secondary Targets . | . . . Shots Hit Robots 125 | 23 85 17 Core Hits 59 | 11 43 5 Critical Kills . | . . . Critical Parts Destroyed . | . . . Critical Strikes . | . . . Melee Attacks . | . . . Impact . | . . . Slashing . | . . . Piercing . | . . . Sneak Attacks . | . . . Combat Hostiles . | . . . Follow-up Attacks . | . . . Damage Inflicted 2271 | 265 1625 381 Guns 1168 | 265 790 113 Cannons . | . . . Explosions 1070 | . 802 268 Melee . | . . . Ramming 33 | . 33 . Kinetic 913 | 143 657 113 Thermal 255 | 122 133 . Explosive 1070 | . 802 268 Electromagnetic . | . . . Impact . | . . . Slashing . | . . . Piercing . | . . . Highest Corruption . | . . . Average Corruption . | . . . Corruption Purged . | . . . Corruption Blocked . | . . . Overload Shots . | . . . Overflow Damage 30 | . 30 . Projectiles . | . . . Explosions 30 | . 30 . Melee . | . . . Knockbacks 1 | . 1 . Impact 1 | . 1 . Kinetic . | . . . Secondary . | . . . Self-Inflicted Damage 132 | . 56 76 Shots 5 | . 2 3 Rammed 2 | . 2 . Targets Rammed 4 | . 4 . Kicked 2 | . 2 . Crushed . | . . . Highest Temperature 20 | . 20 . Average Temperature 6 | . 6 . Received Heat Transfer 330 | . 252 78 Siege Activations . | . . . Martial Activations . | . . . Shielding Activations . | . . . Robots Disrupted . | . . . Combat Hostiles . | . . . Robots Corrupted . | . . . Combat Hostiles . | . . . Parts Fried . | . . . Impact Corruptions . | . . . Robots Melted . | . . . Combat Hostiles . | . . . Parts Melted 1 | . 1 . Heat Transferred 575 | 275 300 . Parts Sabotaged . | . . . Parts Stolen . | . . . Parts Stripped . | . . . Power Chain Reactions . | . . . Alert | -11 -10 -10 ------- Run | Yrd Mat Sub Maximum Alert Level . | . . . Low Security (%) 100 | 100 100 . Level 1 . | . . . Level 2 . | . . . Level 3 . | . . . Level 4 . | . . . Level 5 . | . . . High Security . | . . . Max Security . | . . . Peak Influence 183 | 10 183 . Initial . | . . . Average 58 | 1 68 . Influence Increases 640 | 50 590 . Destroy 0b10 Robot/C 300 | . 300 . Destroy 0b10 Robot/NC 105 | 50 55 . Destroy Leader 76 | . 76 . Successful Hack 29 | . 29 . Disable Machine 15 | . 15 . Destroy Structure 55 | . 55 . Partial Spotted 30 | . 30 . Lose Combat Pursuer 30 | . 30 . Influence Decreases 640 | 50 471 119 Entered New Map 58 | . . 58 Time Decay 542 | 50 431 61 Lost Part 40 | . 40 . Squads Dispatched 3 | . 3 . Investigation . | . . . Extermination . | . . . Reinforcement 3 | . 3 . Assault . | . . . Garrison . | . . . Intercept . | . . . Searches Triggered . | . . . Construction Impeded . | . . . Haulers Reinforced . | . . . Active Scanning Responses . | . . . Cargo Convoy Interrupts . | . . . Stealth | -11 -10 -10 --------- Run | Yrd Mat Sub Distress Signals 1 | . 1 . Communications Jammed . | . . . Distress Signals . | . . . Times Spotted 34 | . 30 4 Peak Tracking Total 6 | . 6 3 Tactical Retreats 1 | . 1 . Traps | -11 -10 -10 ------- Run | Yrd Mat Sub Traps Triggered 2 | . 1 1 Indirectly . | . . . Trap Hack Attempts . | . . . Triggered . | . . . Disarmed . | . . . Reprogrammed . | . . . Reused . | . . . Traps Extracted . | . . . Installed . | . . . Triggered . | . . . Machines | -11 -10 -10 ---------- Run | Yrd Mat Sub Machines Disabled 1 | . 1 . Max in Single Turn 1 | . 1 . Machines Repaired . | . . . Machines Dismantled . | . . . Machines Sabotaged . | . . . Overloaded Fab Kills . | . . . Hacking | -11 -10 -10 --------- Run | Yrd Mat Sub Machines Accessed 6 | . 6 . Terminals 5 | . 5 . Fabricators . | . . . Repair Stations . | . . . Recycling Units 1 | . 1 . Scanalyzers . | . . . Garrison Access . | . . . Total Hacks 16 | . 16 . Successful 8 | . 8 . Failed 8 | . 8 . Catastrophic . | . . . Database Lockouts . | . . . Manual 16 | . 16 . Terminals 15 | . 15 . Fabricators . | . . . Repair Stations . | . . . Recycling Units 1 | . 1 . Scanalyzers . | . . . Garrison Access . | . . . Terminal Hacks 2 | . 2 . Robot Schematic 1 | . 1 . Branch Access Points 1 | . 1 . Fabricator Hacks . | . . . Repair Station Hacks . | . . . Recycling Unit Hacks 1 | . 1 . Report Inventory 1 | . 1 . Scanalyzer . | . . . Garrison Access Hacks . | . . . Unauthorized Hacks 5 | . 5 . Terminals 5 | . 5 . Skim 5 | . 5 . Fabricators . | . . . Repair Stations . | . . . Recycling Units . | . . . Scanalyzers . | . . . Garrison Access . | . . . Data Cores Recovered . | . . . Used . | . . . Hacking Detections 5 | . 5 . Full Trace Events 1 | . 1 . Feedback Events . | . . . Feedback Blocked . | . . . Robot Schematics Acquired 1 | . 1 . Robots Built . | . . . Authchips . | . . . Time . | . . . Total Robot Build Rating . | . . . Part Schematics Acquired . | . . . Parts Built . | . . . Authchips . | . . . Time . | . . . Total Part Build Rating . | . . . Part Studies Acquired . | . . . Parts Repaired . | . . . Time . | . . . Parts Recycled . | . . . Recycled Matter . | . . . Retrieved Matter . | . . . Retrieved Components . | . . . Parts Scanalyzed . | . . . Part Schematics Acquired . | . . . Parts Damaged . | . . . Bothacking | -11 -10 -10 ------------ Run | Yrd Mat Sub Used RIF Installer . | . . . Robots Hacked . | . . . Non-combat . | . . . Combat . | . . . Robot Hacks Applied . | . . . Relay Couplers Released . | . . . Fabnet Peak Effective % . | . . . Robots Rewired . | . . . Allies Hacked . | . . . Hacks Repelled . | . . . Allies | -11 -10 -10 -------- Run | Yrd Mat Sub Total Allies . | . . . Largest Group . | . . . Highest-Rated Group . | . . . Highest-Rated Ally . | . . . Total Orders . | . . . Ally Attacks . | . . . Total Damage . | . . . Kills . | . . . Allies Corrupted . | . . . Allies Melted . | . . . X0-1V1 Amusement Gains 21 | . 11 10 Average Entertainment 10 | . 11 10 Good Acts 4 | . . 4 Intel | -11 -10 -10 ------- Run | Yrd Mat Sub Active Infowar (turns) 1405 | 22 1383 . Terrain 84 | 22 62 . Seismic 1321 | . 1321 . Robot Analysis Total . | . . . Derelict Logs Recovered . | . . . Drone Launches . | . . . Drone Recoveries . | . . . Exploration | -11 -10 -10 ------------- Run | Yrd Mat Sub Turns Passed 2096 | 234 1387 475 Spaces Moved 1281 | 95 915 271 Core 7 | 5 2 . Treads 598 | . 327 271 Legs 310 | 90 220 . Wheels . | . . . Hover 366 | . 366 . Flight . | . . . Fastest Speed 50 | 50 56 160 Average Speed 129 | 120 121 160 Slowest Speed 190 | 190 190 160 Overloaded Moves . | . . . Propulsion Burnouts . | . . . Robots Hopped . | . . . Potential Cave-ins . | . . . Cave-ins Triggered . | . . . Exploration Rate (%) 42 | 4 99 24 Regions Visited 2 Branch Regions 1 Pre-discovered Areas . | . . . Known Exits Taken . | . . . Unknown Exits Taken 2 | 1 1 . Scrap Searched . | . . . Spaces Dug . | . . . Terrain Destroyed 88 | . 62 26 Melee . | . . . Projectile . | . . . AOE 88 | . 62 26 Terrain Rammed . | . . . Walls Destroyed . | . . . Machines Disabled . | . . . Actions | -11 -10 -10 --------- Run | Yrd Mat Sub Total 1538 | 179 1066 293 Wait 80 | 49 31 . Move 1279 | 94 914 271 Hop . | . . . Pick Up 18 | 10 8 . Fast Attach 12 | 7 4 1 Attach 8 | . 4 4 Detach . | . . . Swap 17 | 1 16 . Drop 14 | 2 12 . Fire 106 | 16 73 17 Melee . | . . . Ram 2 | . 2 . Kick 2 | . 2 . Crush . | . . . Escape Stasis . | . . . Rewire . | . . . Trap . | . . . Miscellaneous . | . . . Route ------- -11/Scrapyard -10/Materials (discovered 5 exits: [*Mat x3] / *Min / [*Sub]) -10/Subcaves History --------- Turn | Location | Event 24 | -11/Scrapyard | Discovered new exit (range 15) 235 | -11/Scrapyard | Entered Materials 318 | -10/Materials | Build established: Mutant 403 | -10/Materials | Identified exit to Mines 672 | -10/Materials | Lost 3 parts (1p2n) 736 | -10/Materials | Discovered new exit (range 13) 858 | -10/Materials | Discovered new exit (range 15) 1307 | -10/Materials | Discovered new exit (range 10) 1344 | -10/Materials | Core integrity fell below 50% 1600 | -10/Materials | Discovered new exit (range 10) 1616 | -10/Materials | Prayed at D.C.S.S. Altar Unit 1622 | -10/Materials | Entered Subcaves 1746 | -10/Subcaves | Ranged accuracy permanently improved by X0-1V1 (+5%; -50 max core) 1858 | -10/Subcaves | X0-1V1 activates XOMVISION 2069 | -10/Subcaves | Ambushed by Subdweller buried in earth 2079 | -10/Subcaves | Ambushed by Subdweller buried in earth 2094 | -10/Subcaves | Core integrity fell below 20% 2097 | -10/Subcaves | Destroyed by K9-C6P(R) with Subdweller Laser Last Messages --------------- shimmering waves of color. Acquired X0-1V1's Piety Tracker. Lgt. Ion Engine destroyed. 7L-29P(R) destroyed. K9-C6P(R): "GOODGOOD!" Lgt. Assault Rifle destroyed. Subatomizers dissect the Sub. Monowheel. X0-1V1 shines guiding lasers throughout the area (+19% ranged accuracy). Lgt. Treads destroyed. VN-0ZI(R): "SLEEPOVER!" Hover Unit destroyed. Lgt. Assault Rifle destroyed. Grenade Launcher destroyed. Subatomizers dissect the Sub. Monowheel. X0-1V1: "Heat sink stocks are down. Don't ask me how I know." (+102 heat dissipation) The unstable cave ceiling collapses. Lgt. Ion Engine destroyed. X0-1V1 howls with laughter! Map ----- +----------------------------------------------------+ | ?????# ## #?????????????????????????????????? | | ?????# ##????????????????????????????????? | | ?????# ## ####?????????????????????????????? | | ?????# #?# #?#######????????????????####?? | | ?????# ### ### ####?????????#### ##? | | ?????## # #??????#### ## | | ??????# ## #######?## # | | ??????# ### ## ## ## ### | | ??????###?## ### ### | | ??????????# ## ### #? | | ????######## ## ##?## ##? | | ???## ^ #?# ### #??# ## ## | | #### ### ###?### ### | | # #???# ## | | ##^ ^ ##??# ## ###### | | ## ## ^^ #??# ## ##????## | | # ### ^ ##??# ### ##?????? | | ## ### #######???## ##?## ###????? | | ?## ####?###??????????## ##???# #????? | | ??# #??????????????????## ##????# #????? | | ??# #??????????????????## ##?????# #????? | | ??# ##???????????????############## ####?? | | ??# # #????????????????# # # ## #?? | | ??#####????????????????# #?? | | ???????????????????????# ## #?? | | ??????????????????????## @ # ##### ##?? | | ????????????????????### ####???# ## #??? | | ????????????????????# RR #??????### ### #??? | | ????????????????????### #??????# #??# #??? | | ??????????????????????# R #????? ??? #??? | | ?????????????????????? =%] #????? ##??? #?? | | ?????????????????????## ???? #???? #?? | | ??????????????????????## ?? #?????##?? | | ??????????????????????? # #????????? | | ???????????????????????#### # #????????? | | ???????????????????????????# ####? #????????? | | ???????????????????????????? #????# ##????????? | | ????????????????????????????#####?????#??????????? | | ?????????????????????????????????????????????????? | | ?????????????????????????????????????????????????? | | ?????????????????????????????????????????????????? | | ?????????????????????????????????????????????????? | | ?????????????????????????????????????????????????? | | ?????????????????????????????????????????????????? | | ?????????????????????????????????????????????????? | | ?????????????????????????????????????????????????? | | ?????????????????????????????????????????????????? | | ?????????????????????????????????????????????????? | | ?????????????????????????????????????????????????? | | ?????????????????????????????????????????????????? | +----------------------------------------------------+ Best States ------------- Heat Dissipation 127 Energy Generation 10 Energy Capacity 250 Matter Stores 300 Matter Capacity 300 Sight Range 16 Terrain Scan Range 16 Terrain Scan Density 10 Evasion (%) 55 Recoil Reduction 2 Item Schematics ----------------- None Robot Schematics ------------------ G-34 Mercenary | -10/Materials | Hacked Fabricated ------------ Nothing Repaired ---------- Nothing Studied --------- None Alien Tech Used ----------------- None Achievements -------------- None Challenges ------------ None Game ------ Seed GammaSmallRecalibrator Manual? 0 Play Time 00:17:37 Cumulative 20.9 hours Start 2026.09.13 @ 14:29:32 End 2026.09.13 @ 14:44:46 Sessions 1 Manual Loads 0 Difficulty Rogue Special Mode None Game No. 42 Rogue 42 Adventurer 0 Explorer 0 Win Type - Total 0 Types 0/0/0/0/0/0/0/0/0/0 Lore% 32 Gallery% 18 Achievement% 16 Wizard Run 0 Options --------- Layout 2 ASCII 0 Keyboard 0 Movement Mouse Keybinds 0 Fullscreen 2 Font 24/Smallcaps Map View 50x44 Zoom Use 0% Tactical HUD 0 Map Filters NONE Filters NONE Steam 1 RUN: b4260190-10e4-4602-b165-6c375f14b85c